[Event "10th Cesme Open-A 2024"]
[Site "Cesme"]
[Date "2024.06.28"]
[Round "7"]
[White "Yildiz, Serdar Murat"]
[Black "Altun, Arda"]
[Result "1/2-1/2"]
[ECO "B90"]
[WhiteElo "2026"]
[BlackElo "2149"]
[Annotator "RC"]
[PlyCount "80"]
[EventDate "2024.06.23"]
[EventType "swiss"]
[EventCountry "TUR"]
[SourceTitle "playchess.com"]
[Source "ChessBase"]
[SourceQuality "1"]
[TimeControl "5400+30"]

1. e4 {[%emt 0:00:00]} c5 {[%emt 0:10:00]} 2. Nf3 {[%emt 0:00:00]} d6 {[%emt 0:00:30]} 3. d4 {[%emt 0:00:00]} cxd4 {[%emt 0:00:30]} 4. Nxd4 {[%emt 0:00:30]} Nf6 {[%emt 0:00:30]} 5. Nc3 {[%emt 0:00:30]} a6 {[%emt 0:00:30]} 6. h3 {[%emt 0:00:30]} e5 {[%emt 0:00:30]} 7. Nb3 {[%emt 0:00:30]} Be6 {[%emt 0:00:30]} 8. f4 {[%emt 0:00:30]} exf4 {[%emt 0:00:30]} 9. Bxf4 {[%emt 0:00:30]} Be7 {[%emt 0:00:30]} 10. Qf3 {[%emt 0:00:30]} Nc6 {[%emt 0:00:30]} 11. O-O-O {[%emt 0:01:30]} Qc7 {[%emt 0:04:30]} 12. Be2 {[%emt 0:22:30]} Ne5 {[%emt 0:14:30]} 13. Qe3 {[%emt 0:06:30]} b5 {[%emt 0:04:30]} 14. Nd5 {[%emt 0:05:30]} Bxd5 {[%emt 0:05:30]} 15. exd5 {[%emt 0:00:30]} Rc8 {[%emt 0:00:30]} 16. c3 {[%emt 0:03:30]} Nfd7 {[%emt 0:08:30]} 17. Bg4 {[%emt 0:12:30]} Bf6 {[%emt 0:05:30]} 18. Kb1 {[%emt 0:12:30]} O-O {[%emt 0:02:30]} 19. Nd4 {[%emt 0:00:30]} Rfe8 {[%emt 0:10:30]} 20. Rhe1 {[%emt 0:03:30]} Kf8 {[%emt 0:06:30]} 21. Qg3 {[%emt 0:01:30]} Nc4 {[%emt 0:11:41]} 22. Nc6 {[%emt 0:02:30]} Rxe1 {[%emt 0:02:10]} 23. Rxe1 {[%emt 0:00:30]} Re8 {[%emt 0:00:42]} 24. Rxe8+ {[%emt 0:11:18]} Kxe8 {[%emt 0:00:30]} 25. b3 {[%emt 0:00:30]} Nce5 {[%emt 0:00:30]} 26. Bxd7+ {[%emt 0:00:30]} Qxd7 {[%emt 0:00:30]} 27. Bxe5 {[%emt 0:00:30]} Qf5+ {[%emt 0:00:30]} 28. Kb2 {[%emt 0:00:30]} Bxe5 {[%emt 0:00:30]} 29. Qe3 {[%emt 0:03:22]} Kf8 {[%emt 0:03:31]} 30. Nxe5 {[%emt 0:01:51]} Qxe5 {[%emt 0:00:38]} 31. Qxe5 {[%emt 0:00:30]} dxe5 {[%emt 0:00:00]} 32. c4 {[%emt 0:01:58]} bxc4 {[%emt 0:00:00]} 33. bxc4 {[%emt 0:00:25]} Ke7 {[%emt 0:00:29]} 34. c5 {[%emt 0:00:26]} f5 {[%emt 0:00:00]} 35. Kc3 {[%emt 0:02:34]} Kd7 {[%emt 0:00:00]} 36. Kd3 {[%emt 0:01:35]} Kc7 {[%emt 0:00:15]} 37. g4 {[%emt 0:01:03]} g6 {[%emt 0:00:08]} 38. gxf5 {[%emt 0:00:56]} gxf5 {[%emt 0:00:03]} 39. Ke3 {[%emt 0:00:15]} h5 {[%emt 0:00:43]} 40. h4 {[%emt 0:00:30]} Kd7 {[%emt 0:00:00]} 1/2-1/2

[Event "10th Cesme Open-A 2024"]
[Site "Cesme"]
[Date "2024.06.28"]
[Round "7"]
[White "Pereverzev, Timofei"]
[Black "Kavri, Yusuf Eren"]
[Result "1/2-1/2"]
[ECO "B56"]
[WhiteElo "2019"]
[BlackElo "2059"]
[Annotator "NA RC"]
[PlyCount "94"]
[EventDate "2024.06.23"]
[EventType "swiss"]
[EventCountry "TUR"]
[SourceTitle "playchess.com"]
[Source "ChessBase"]
[SourceQuality "1"]
[TimeControl "5400+30"]

1. e4 {[%emt 0:01:00]} c5 {[%emt 0:01:00]} 2. Nf3 {[%emt 0:00:00]} Nc6 {[%emt 0:00:30]} 3. d4 {[%emt 0:00:00]} cxd4 {[%emt 0:00:30]} 4. Nxd4 {[%emt 0:00:30]} Nf6 {[%emt 0:00:00]} 5. Nc3 {[%emt 0:00:30]} d6 {[%emt 0:00:00]} 6. f3 {[%emt 0:00:30]} e5 {[%emt 0:00:00]} 7. Nb3 {[%emt 0:00:00]} Be6 {[%emt 0:00:00]} 8. Be3 {[%emt 0:00:00]} d5 {[%emt 0:00:00]} 9. exd5 {[%emt 0:00:30]} Nxd5 {[%emt 0:00:00]} 10. Nxd5 {[%emt 0:02:30]} Qxd5 {[%emt 0:00:00]} 11. Qxd5 {[%emt 0:06:30]} Bxd5 {[%emt 0:00:00]} 12. c3 {[%emt 0:03:30]} O-O-O {[%emt 0:03:30]} 13. O-O-O {[%emt 0:01:30]} Be7 {[%emt 0:02:30]} 14. Bd3 {[%emt 0:02:30]} Kc7 {[%emt 0:06:30]} 15. Rd2 {[%emt 0:00:30]} b6 {[%emt 0:06:30]} 16. Rhd1 {[%emt 0:05:30]} Be6 {[%emt 0:04:30]} 17. f4 {[%emt 0:13:30]} exf4 {[%emt 0:08:30]} 18. Bxf4+ {[%emt 0:00:00]} Bd6 {[%emt 0:00:30]} 19. Bxd6+ {[%emt 0:01:00]} Rxd6 {[%emt 0:00:00]} 20. Bc4 {[%emt 0:13:30]} Rxd2 {[%emt 0:03:00]} 21. Nxd2 {[%emt 0:00:00]} Bg4 {[%emt 0:07:30]} 22. Re1 {[%emt 0:01:00]} f6 {[%emt 0:00:30]} 23. h3 {[%emt 0:01:30]} Bd7 {[%emt 0:03:30]} 24. Nf3 {[%emt 0:00:00]} g5 {[%emt 0:02:30]} 25. b4 {[%emt 0:02:00]} Re8 {[%emt 0:09:30]} 26. Rxe8 {[%emt 0:07:30]} Bxe8 {[%emt 0:00:30]} 27. h4 {[%emt 0:04:30]} h6 {[%emt 0:04:30]} 28. Kd2 {[%emt 0:02:30]} Kd6 {[%emt 0:02:30]} 29. Bb5 {[%emt 0:00:30]} Bf7 {[%emt 0:03:30]} 30. Bxc6 {[%emt 0:01:30]} Kxc6 {[%emt 0:00:30]} 31. hxg5 {[%emt 0:00:00]} hxg5 {[%emt 0:00:00]} 32. a4 {[%emt 0:00:00]} Kd5 {[%emt 0:01:00]} 33. Nd4 {[%emt 0:12:30]} Be8 {[%emt 0:07:30]} 34. b5 {[%emt 0:03:14]} Kc4 {[%emt 0:01:30]} 35. Nc6 {[%emt 0:01:20]} a6 {[%emt 0:01:30]} 36. Ne7 {[%emt 0:07:01]} axb5 {[%emt 0:00:30]} 37. axb5 {[%emt 0:00:05]} Bxb5 {[%emt 0:01:30]} 38. Ng8 {[%emt 0:00:18]} f5 {[%emt 0:00:30]} 39. Nh6 {[%emt 0:00:02]} f4 {[%emt 0:04:57]} 40. Nf7 {[%emt 0:00:49]} Bc6 {[%emt 0:00:10]} 41. Nxg5 {[%emt 0:01:11]} Bxg2 {[%emt 0:00:30]} 42. Ne6 {[%emt 0:00:00]} f3 {[%emt 0:00:44]} 43. Nf4 {[%emt 0:00:11]} f2 {[%emt 0:00:30]} 44. Nxg2 {[%emt 0:00:00]} f1=N+ {[%emt 0:00:12]} 45. Kc2 {[%emt 0:00:09]} b5 {[%emt 0:00:06]} 46. Kb2 {[%emt 0:00:22]} b4 {[%emt 0:00:40]} 47. cxb4 {[%emt 0:00:30]} Kxb4 {[%emt 0:00:00]} 1/2-1/2

[Event "10th Cesme Open-A 2024"]
[Site "Cesme"]
[Date "2024.06.30"]
[Round "9"]
[White "Bernadskiy, Vitaliy"]
[Black "Yermolinsky, Alex"]
[Result "1-0"]
[ECO "B62"]
[WhiteElo "2563"]
[BlackElo "2421"]
[Annotator "TA"]
[PlyCount "73"]
[EventDate "2024.06.23"]
[EventType "swiss"]
[EventCountry "TUR"]
[SourceTitle "playchess.com"]
[Source "ChessBase"]
[SourceQuality "1"]
[TimeControl "5400+30"]

{[%evp 12,73,40,33,31,27,38,30,37,16,19,0,0,-16,0,0,0,0,8,0,0,0,0,0,0,0,26,14,6,0,0,0,0,0,0,-20,51,62,256,258,256,261,266,255,260,265,284,259,260,255,234,184,921,914,906,920,910,888,29984,29985,29985,29986,29986,29987]} 1. e4 {[%emt 0:01:00]} c5 {[%emt 0:02:00]} 2. Nf3 {[%emt 0:00:00]} d6 {[%emt 0:00:30]} 3. d4 {[%emt 0:02:00]} cxd4 {[%emt 0:00:30]} 4. Nxd4 {[%emt 0:00:30]} Nf6 {[%emt 0:00:00]} 5. Nc3 {[%emt 0:02:30]} Nc6 {[%emt 0:00:00]} 6. Bg5 {[%emt 0:00:00]} e6 {[%emt 0:00:00]} 7. Bb5 {[%emt 0:00:00]} Qb6 {[%emt 0:02:00]} 8. Bxf6 {[%emt 0:11:30]} (8. Be3 $5 Qc7 $8 9. O-O $11) 8... gxf6 {[%emt 0:00:30]} 9. O-O {[%emt 0:00:30][%cal Oc3d5]} Bd7 {[%emt 0:04:30] White has an edge.} 10. Bxc6 {[%emt 0:11:30]} (10. Nb3 {with more complications.} Rg8 11. a4 a6 12. a5) 10... bxc6 {[%emt 0:00:30]} 11. Nb3 {[%emt 0:03:30]} h5 {[%emt 0:02:30]} 12. Kh1 {[%emt 0:03:30]} h4 {[%emt 0:07:30]} 13. h3 {[%emt 0:02:30]} Be7 {[%emt 0:02:30]} 14. Qf3 {[%emt 0:01:30]} O-O-O {[%emt 0:04:30][%cal Ba8d8,Bd8g8,Bg8g5][%mdl 32]} 15. a4 {[%emt 0:00:30][%cal Ba2a4,Ba4a5][%mdl 32]} Rdg8 {[%emt 0:00:30]} 16. a5 {[%emt 0:00:30]} Qc7 {[%emt 0:00:30]} 17. Nd4 {[%emt 0:00:30]} Rg5 {[%emt 0:03:30][%cal Oe6e5]} 18. b4 {[%emt 0:03:30]} Rhg8 {[%emt 0:00:30] White must now prevent ...Rxg2.} 19. Rg1 {[%emt 0:00:00]} e5 {[%emt 0:09:30]} (19... d5 {seems wilder.} 20. b5 Bb4 21. bxc6 Bxc6 22. Rad1 Bxc3 23. Qxc3 Ba8) 20. Nb3 {[%emt 0:16:00][%cal Ob4b5]} f5 {[%emt 0:19:30]} 21. b5 {[%emt 0:00:00][%cal Ob5b6]} fxe4 $1 {[%emt 0:00:30]} (21... cxb5 22. Nd5 Qd8 23. exf5 $18) 22. Qxe4 {[%emt 0:02:00]} d5 {[%emt 0:05:30]} (22... cxb5 $2 23. Nd5 Bc6 24. Nxe7+ (24. Qxh4 $2 Bxd5 25. Qh7 Bxg2+ 26. Kh2 Qc4 $19) 24... Kd7 25. Nxc6 (25. Qxh4 $2 Rxg2 26. Rxg2 Rxg2 $19) 25... Qxc6 26. Rae1 $18 (26. Qxh4 $2 Rxg2 $19)) 23. Qe2 {[%emt 0:01:30][%cal Ob5b6]} e4 {[%emt 0:02:30]} (23... Bd6 $11) 24. b6 $1 $14 {[%emt 0:04:30]} Qe5 {[%emt 0:10:30] This move loses the game for Black.} (24... axb6 $14 25. Qa6+ Qb7 26. axb6 Bb4) 25. Qa6+ $18 {[%emt 0:04:30]} (25. bxa7 Kb7 26. Qe3 Bd6 $14 (26... Ka8 27. Na4 $14)) 25... Kd8 {[%emt 0:00:00] Hoping for ...Bd6.} 26. bxa7 {[%emt 0:00:30]} Bd6 {[%emt 0:01:00][%csl Gd6][%cal Re5h2]} 27. a8=Q+ {[%emt 0:00:00]} (27. a8=R+ Ke7 28. g3 (28. f4 {leads to mate.} Qxf4 29. Nxd5+ Rxd5 30. g3 Rxg3 31. Qf1 Rdg5 32. Rxg3 Qxg3) 28... Qf5 $19) 27... Ke7 {[%emt 0:00:30][%csl Gd6][%cal Re5h2] [#]} 28. Nxd5+ $1 {[%emt 0:00:00]} cxd5 {[%emt 0:05:16][%csl Gd6][%cal Re5h2] [#]} 29. Qxd6+ $3 {[%emt 0:00:30]} Kxd6 {[%emt 0:04:39]} 30. Qa7 {[%emt 0:02:30]} Qc3 {[%emt 0:00:50][%cal Og5g2] Prevents Qc5+} 31. Qb6+ {[%emt 0:04:30]} Ke5 $2 {[%emt 0:02:18] [#]} (31... Ke7) 32. f4+ $1 {[%emt 0:02:30][%mdl 512]} exf3 {[%emt 0:02:03]} 33. Rae1+ {[%emt 0:00:30]} Kf4 {[%emt 0:01:30]} 34. Qd6+ {[%emt 0:00:30]} Re5 {[%emt 0:04:42]} 35. Qf6+ {[%emt 0:00:30] White mates.} Bf5 {[%emt 0:00:39]} 36. Qxh4+ {[%emt 0:00:00]} Bg4 {[%emt 0:01:47]} 37. Qf6+ {[%emt 0:00:00] Weighted Error Value: White=0.06 (flawless) /Black=0.43.  Loses game:     	---       	Black=1      Mistake:       	---       	Black=2      OK:         	White=10    	Black=8      Best:        	White=3     	Black=5      Strong:       	White=1     	Black=1      Brilliant:      	White=2     	---} 1-0

[Event "10th Cesme Open-A 2024"]
[Site "Cesme"]
[Date "2024.06.30"]
[Round "9"]
[White "Kovalev, Vladislav"]
[Black "Schekachikhin, Maksim"]
[Result "1-0"]
[ECO "C60"]
[WhiteElo "2559"]
[BlackElo "2343"]
[Annotator "TA"]
[PlyCount "131"]
[EventDate "2024.06.23"]
[EventType "swiss"]
[EventCountry "TUR"]
[SourceTitle "playchess.com"]
[Source "ChessBase"]
[SourceQuality "1"]
[TimeControl "5400+30"]

{[%evp 40,131,58,58,70,71,72,43,45,63,65,47,75,40,103,103,110,103,103,103,103,96,119,119,122,117,114,122,121,121,122,122,122,101,106,101,250,272,296,279,288,267,277,185,212,184,201,179,204,206,213,208,216,186,200,167,234,222,214,197,272,239,360,352,339,357,403,379,1016,974,1182,1138,1191,1204,1111,1036,1093,1093,1211,756,1742,1741,1789,1994,29985,29986,29986,29987,29987,29987,29983,29981,29994,29995]} 1. e4 {[%emt 0:01:00]} e5 {[%emt 0:01:00]} 2. Nf3 {[%emt 0:00:30]} Nc6 {[%emt 0:00:30]} 3. Bb5 {[%emt 0:00:30]} Nge7 {[%emt 0:00:00]} 4. Nc3 {[%emt 0:02:30]} Ng6 {[%emt 0:01:00]} 5. h4 {[%emt 0:03:30]} Be7 {[%emt 0:00:30]} 6. Nd5 $146 {[%emt 0:22:30] C60: Ruy Lopez: Unusual Black 3rd moves and 3...g6.} ({Predecessor:} 6. h5 Nh4 7. Nxh4 Bxh4 8. Bxc6 dxc6 9. d3 Be6 10. h6 g6 11. Be3 Bg5 12. Qd2 Bxe3 13. Qxe3 {½-½ Narayanan,S (2677)-Praggnanandhaa,R (2740) Wch Blitz Samarkand 2023 (14)}) 6... Bxh4 {[%emt 0:01:30]} 7. Nxh4 {[%emt 0:12:30]} Nxh4 {[%emt 0:00:30]} 8. Nxc7+ {[%emt 0:00:30]} Qxc7 {[%emt 0:00:30]} 9. Rxh4 {[%emt 0:00:00]} d6 {[%emt 0:15:30]} 10. c3 {[%emt 0:02:00]} Bd7 {[%emt 0:06:30]} 11. d3 {[%emt 0:12:30]} Nd8 {[%emt 0:14:30]} 12. a4 {[%emt 0:05:30]} a6 {[%emt 0:01:30]} 13. Bxd7+ {[%emt 0:02:30]} Qxd7 {[%emt 0:02:30]} 14. Be3 {[%emt 0:00:30]} f6 {[%emt 0:06:30]} 15. a5 {[%emt 0:01:30]} O-O {[%emt 0:08:30]} 16. Qb3+ {[%emt 0:06:30]} Rf7 {[%emt 0:01:30]} 17. Ke2 {[%emt 0:02:30]} Qe6 {[%emt 0:02:30]} 18. Ra3 {[%emt 0:02:41]} Qxb3 {[%emt 0:03:30]} 19. Rxb3 {[%emt 0:00:30]} Nc6 {[%emt 0:00:00]} 20. Bb6 {[%emt 0:04:24]} Rd7 {[%emt 0:00:00]} 21. c4 {[%emt 0:00:15]} h6 {[%emt 0:03:30]} 22. Ra3 {[%emt 0:00:55]} Kf7 {[%emt 0:00:30]} 23. g3 {[%emt 0:00:31]} Rh8 {[%emt 0:02:30]} 24. Ra1 {[%emt 0:00:57]} Re8 {[%emt 0:04:30]} 25. Kd2 {[%emt 0:01:46]} Ke6 {[%emt 0:01:30]} 26. f4 {[%emt 0:06:18]} Rf8 {[%emt 0:14:19]} (26... exf4 $1 $14 27. Rxf4 (27. gxf4 f5 $11) 27... Rg8) 27. f5+ $16 {[%emt 0:00:06]} Ke7 {[%emt 0:00:30]} 28. Kc3 {[%emt 0:00:36]} Rc8 {[%emt 0:00:09]} 29. b4 {[%emt 0:00:01]} Ke8 {[%emt 0:00:17]} 30. Rhh1 {[%emt 0:00:42]} Ne7 {[%emt 0:01:25]} 31. Kd2 {[%emt 0:00:14]} Nc6 {[%emt 0:01:11]} 32. Rab1 {[%emt 0:00:09]} Ra8 {[%emt 0:01:03]} 33. Rb2 {[%emt 0:00:21]} Ne7 {[%emt 0:00:21]} 34. Rhb1 {[%emt 0:00:38]} Nc8 {[%emt 0:01:38]} 35. Be3 {[%emt 0:00:14]} Rc7 {[%emt 0:00:00]} 36. Rc2 {[%emt 0:00:45]} Kd7 {[%emt 0:00:00]} 37. Kc3 {[%emt 0:00:51]} d5 {[%emt 0:01:03]} (37... Ne7 $16 38. Rcb2 g6) 38. exd5 $18 {[%emt 0:02:41]} Ne7 {[%emt 0:00:04]} 39. Bc5 {[%emt 0:01:54]} Nxf5 {[%emt 0:00:03]} 40. g4 {[%emt 0:00:00]} Nd6 {[%emt 0:01:33]} 41. Re1 {[%emt 0:00:36]} Rh8 {[%emt 0:01:22]} 42. d4 {[%emt 0:01:31]} Nf7 {[%emt 0:00:33]} 43. Rf2 {[%emt 0:00:43]} Re8 {[%emt 0:00:42]} 44. Kd3 {[%emt 0:00:23]} Rcc8 {[%emt 0:01:26] [#]} 45. Rfe2 $1 {[%emt 0:01:05]} Kc7 {[%emt 0:00:07]} 46. Re3 {[%emt 0:00:32]} Kd7 {[%emt 0:00:07]} 47. Kc2 {[%emt 0:02:21]} Rc7 {[%emt 0:02:02]} (47... Rh8 $142 48. Kd3 Rce8) 48. Kb3 {[%emt 0:00:11]} Rcc8 {[%emt 0:00:00]} 49. R3e2 {[%emt 0:01:14]} Rc7 {[%emt 0:00:17]} (49... Rb8 $142 50. Bb6 e4) 50. dxe5 {[%emt 0:01:17]} Rxe5 {[%emt 0:00:30]} (50... Nxe5 $142 51. Bd4 Rxc4 52. Bxe5 Rxg4) 51. Bd4 {[%emt 0:00:27]} Rxe2 {[%emt 0:01:15]} 52. Rxe2 {[%emt 0:00:00]} Rc8 {[%emt 0:00:41]} 53. c5 {[%emt 0:00:09]} Ne5 $2 {[%emt 0:02:16]} (53... Rh8 54. b5 axb5) 54. Bxe5 $18 {[%emt 0:00:30]} Re8 {[%emt 0:00:00]} 55. Kc4 {[%emt 0:01:29]} fxe5 {[%emt 0:00:50]} 56. Rf2 {[%emt 0:00:20]} e4 {[%emt 0:00:40]} 57. Kd4 {[%emt 0:00:09]} e3 {[%emt 0:01:18]} 58. Re2 {[%emt 0:00:08]} g6 {[%emt 0:00:00]} 59. Rxe3 {[%emt 0:00:49]} Rf8 {[%emt 0:00:00]} 60. d6 {[%emt 0:01:27]} Rf7 {[%emt 0:01:35]} 61. Kd5 {[%emt 0:00:23]} h5 {[%emt 0:00:00]} 62. b5 {[%emt 0:00:30]} axb5 {[%emt 0:00:43]} 63. a6 {[%emt 0:00:06]} bxa6 {[%emt 0:00:00]} 64. c6+ {[%emt 0:00:00]} Kd8 {[%emt 0:00:19]} 65. c7+ {[%emt 0:00:05]} Kd7 {[%emt 0:00:36]} 66. Re8 {[%emt 0:00:14]} 1-0

[Event "10th Cesme Open-A 2024"]
[Site "Cesme"]
[Date "2024.06.30"]
[Round "9"]
[White "Rasulov, Vugar"]
[Black "Kharitonov, Alexandr"]
[Result "1-0"]
[ECO "A11"]
[WhiteElo "2557"]
[BlackElo "2522"]
[Annotator "TA"]
[PlyCount "115"]
[EventDate "2024.06.23"]
[EventType "swiss"]
[EventCountry "TUR"]
[SourceTitle "playchess.com"]
[Source "ChessBase"]
[SourceQuality "1"]
[TimeControl "5400+30"]

{[%evp 46,115,123,114,115,121,131,112,112,112,125,124,120,111,125,118,117,108,120,110,107,80,86,68,72,70,100,58,66,61,66,44,46,28,37,37,59,36,65,43,47,42,67,40,70,43,44,44,45,48,54,53,275,281,275,122,129,126,125,134,137,122,122,126,110,132,745,728,750,743,741,699]} 1. c4 {[%emt 0:01:00]} c6 {[%emt 0:01:00]} 2. Nf3 {[%emt 0:00:30]} d5 {[%emt 0:00:00]} 3. e3 {[%emt 0:00:30]} Nf6 {[%emt 0:00:00]} 4. Nc3 {[%emt 0:00:30]} e6 {[%emt 0:00:30]} 5. Qc2 {[%emt 0:01:30]} Bd6 {[%emt 0:01:30]} 6. b3 {[%emt 0:01:30] A11: English Opening: 1...c6.} e5 {[%emt 0:01:30]} 7. d4 $5 {[%emt 0:00:30][%mdl 4] Exploring less charted territory.} e4 {[%emt 0:02:30]} 8. Nd2 {[%emt 0:00:30]} a6 $146 {[%emt 0:10:30]} ({Predecessor:} 8... O-O 9. a3 Bf5 10. Be2 Nbd7 11. O-O Re8 12. Bb2 Ng4 13. Bxg4 Bxg4 14. cxd5 cxd5 {0-1 Niese,P (2335)-Hofer,R (2291) Radosztics Memorial Cup01 email 2010}) 9. Be2 {[%emt 0:01:30]} O-O {[%emt 0:02:30]} 10. h3 {[%emt 0:02:30]} Be6 {[%emt 0:00:30]} 11. Bb2 {[%emt 0:00:30]} b5 {[%emt 0:03:30]} 12. g4 {[%emt 0:03:30]} Nbd7 {[%emt 0:05:30]} 13. Rg1 {[%emt 0:02:30]} Qe7 {[%emt 0:10:30]} 14. c5 {[%emt 0:02:30]} Bc7 {[%emt 0:01:30]} 15. O-O-O {[%emt 0:00:30]} b4 {[%emt 0:03:30]} 16. Na4 {[%emt 0:01:30]} Ne8 {[%emt 0:00:30]} 17. f4 {[%emt 0:03:30]} f5 {[%emt 0:06:30]} 18. Nf1 {[%emt 0:01:30]} g6 {[%emt 0:00:30]} 19. Ng3 {[%emt 0:03:30]} Ng7 {[%emt 0:00:30]} 20. Kb1 {[%emt 0:00:30]} a5 {[%emt 0:00:00]} 21. g5 {[%emt 0:01:30]} Kf7 {[%emt 0:03:00]} 22. h4 {[%emt 0:00:30]} Ke8 {[%emt 0:03:30]} 23. h5 {[%emt 0:00:30]} Bf7 {[%emt 0:00:30]} 24. Rh1 {[%emt 0:04:30]} (24. Nb6 Rb8 $14) 24... Ne6 {[%emt 0:00:30]} 25. Rdg1 {[%emt 0:00:30]} Rg8 {[%emt 0:01:30]} 26. Bd1 {[%emt 0:04:30]} Ra7 {[%emt 0:01:30]} 27. Qf2 {[%emt 0:00:00]} Ndf8 {[%emt 0:02:30]} 28. Rh3 {[%emt 0:03:00]} Kd8 {[%emt 0:00:30]} 29. Rgh1 {[%emt 0:00:30]} Be8 {[%emt 0:01:30]} 30. hxg6 {[%emt 0:01:30]} hxg6 {[%emt 0:00:30]} 31. Bc1 {[%emt 0:00:30]} Bd7 {[%emt 0:02:30]} 32. Bd2 {[%emt 0:01:30]} Bc8 {[%emt 0:00:30]} 33. Be2 {[%emt 0:01:30]} (33. a3 {looks sharper.} bxa3 34. Ka2 Ba6 35. Rh6) 33... Ba6 {[%emt 0:00:30]} 34. Bxa6 {[%emt 0:00:30]} (34. a3 {is interesting.} bxa3 35. Bd1 Bd3+ 36. Ka2) 34... Rxa6 {[%emt 0:00:30]} 35. Ne2 {[%emt 0:00:30]} Ra7 {[%emt 0:00:30]} 36. Qe1 {[%emt 0:00:30]} Ke8 {[%emt 0:00:30]} 37. Rh6 {[%emt 0:01:30]} Bd8 {[%emt 0:01:30]} 38. Qh4 {[%emt 0:01:30]} Qb7 {[%emt 0:00:30]} 39. Nc1 {[%emt 0:00:30]} Qa6 {[%emt 0:01:30]} 40. Qf2 {[%emt 0:01:30]} Qb7 {[%emt 0:01:30]} 41. Qf1 {[%emt 0:00:30]} Ra8 {[%emt 0:00:30]} 42. Ne2 {[%emt 0:00:30]} Ra7 {[%emt 0:00:30]} 43. Ng3 {[%emt 0:00:30]} Ra8 {[%emt 0:01:30]} 44. Qh3 {[%emt 0:02:30]} Qf7 {[%emt 0:00:30]} 45. Rh8 {[%emt 0:01:30]} Rxh8 {[%emt 0:04:30]} 46. Qxh8 {[%emt 0:00:30]} Ra7 {[%emt 0:00:00]} 47. Rh6 {[%emt 0:00:30]} Bc7 {[%emt 0:01:00]} ({Wrong is} 47... Qg7 $2 48. Nxf5 Qxh8 49. Nd6+ Ke7 50. Rxh8 $18) 48. Nh5 {[%emt 0:02:30]} gxh5 $2 {[%emt 0:07:30]} (48... Kd8 $1 $14) 49. Rf6 $1 $18 {[%emt 0:01:30]} Qe7 {[%emt 0:00:00] [#]} 50. g6 {[%emt 0:04:30]} ({Not} 50. Qxh5+ Kd8 $11) (50. Be1 $1 $18) 50... Ng7 $16 {[%emt 0:01:00]} 51. Rf7 {[%emt 0:02:30]} ({Worse is} 51. Rxc6 Kd7 52. Rb6 Kc8 $17 (52... Bxb6 53. Nxb6+ Kd8 54. Be1 $17)) 51... Qxf7 {[%emt 0:00:30]} 52. gxf7+ {[%emt 0:00:30]} Kxf7 {[%emt 0:00:00]} 53. Nb6 {[%emt 0:00:30]} Ng6 {[%emt 0:05:59]} 54. Qh6 {[%emt 0:01:30]} Rb7 {[%emt 0:01:15] [#]} 55. Qg5 $1 {[%emt 0:01:30]} h4 $2 {[%emt 0:03:53][%mdl 8192]} (55... Bxb6 $16 56. cxb6 h4) 56. Nd7 $18 {[%emt 0:01:30]} Bxf4 {[%emt 0:02:49]} 57. Qf6+ {[%emt 0:00:30]} Kg8 {[%emt 0:00:04]} 58. Qxg6 {[%emt 0:01:30]} 1-0

[Event "10th Cesme Open-A 2024"]
[Site "Cesme"]
[Date "2024.06.30"]
[Round "9"]
[White "Grover, Sahaj"]
[Black "Caputcuoglu, Zeki Berke"]
[Result "1/2-1/2"]
[ECO "C86"]
[WhiteElo "2510"]
[BlackElo "2239"]
[Annotator "TA"]
[PlyCount "48"]
[EventDate "2024.06.23"]
[EventType "swiss"]
[EventCountry "TUR"]
[SourceTitle "playchess.com"]
[Source "ChessBase"]
[SourceQuality "1"]
[TimeControl "5400+30"]

{[%evp 18,48,25,0,0,0,0,-18,9,4,20,2,0,0,5,-92,-23,-132,-131,-143,-145,-145,-145,-149,-143,-143,-157,-157,0,0,0,-133,0]} 1. e4 {[%emt 0:12:00]} e5 {[%emt 0:01:00]} 2. Nf3 {[%emt 0:00:30]} Nc6 {[%emt 0:00:30]} 3. Bb5 {[%emt 0:00:30][%cal Bf1b5,Bb5a4,Ba4b3,Bb3a2][%mdl 32]} a6 {[%emt 0:00:30]} 4. Ba4 {[%emt 0:00:30]} Nf6 {[%emt 0:00:30]} 5. Qe2 {[%emt 0:00:00]} Be7 {[%emt 0:00:00]} 6. O-O {[%emt 0:00:00]} b5 {[%emt 0:00:00]} 7. Bb3 {[%emt 0:00:00]} O-O {[%emt 0:00:00]} 8. c3 {[%emt 0:00:00]} d5 {[%emt 0:00:00]} 9. d3 {[%emt 0:00:00]} Re8 {[%emt 0:00:00]} 10. Nbd2 {[%emt 0:00:00]} Bf8 {[%emt 0:00:00]} 11. a3 {[%emt 0:00:00]} h6 {[%emt 0:00:30]} 12. Ba2 {[%emt 0:00:00]} a5 {[%emt 0:05:30] The position is equal.} 13. exd5 {[%emt 0:05:30]} Nxd5 {[%emt 0:00:30]} 14. d4 {[%emt 0:00:00]} exd4 {[%emt 0:07:30]} 15. Qxb5 {[%emt 0:00:00]} Nce7 {[%emt 0:00:30] ...Ba6 is the strong threat.} 16. Rd1 {[%emt 0:08:30]} ({Don't play} 16. Nxd4 Ba6 17. Qa4 Bxf1 18. Nxf1 Nb6 $15) (16. cxd4 $11 {keeps the balance.} Ba6 17. Qa4) 16... Ba6 {[%emt 0:16:30]} (16... dxc3 $17 {Threatens to win with ...Ba6.} 17. Ne4 c6) 17. Qc5 {[%emt 0:01:30] [#]} (17. Qa4 $11) 17... Nf4 $1 $17 {[%emt 0:00:30]} 18. Nxd4 {[%emt 0:06:30][%cal Od2e4] [#]} Ned5 $1 {[%emt 0:07:30]} 19. Qc6 {[%emt 0:00:00]} Qg5 {[%emt 0:00:30][%csl Gf4][%cal Rg5g2]} 20. Bxd5 {[%emt 0:04:00] Bc4 would now be deadly.} Nh3+ {[%emt 0:02:30]} ({Inferior is} 20... Qxd5 21. Qxd5 Nxd5 22. a4 $11) ({And not} 20... Nxd5 21. N4f3 Qh5 22. Nf1 $11) 21. Kh1 {[%emt 0:00:00]} Nxf2+ {[%emt 0:00:30]} 22. Kg1 {[%emt 0:00:00] aiming for Ne4.} Nh3+ {[%emt 0:04:30][%mdl 1024] Black has strong compensation.} 23. Kh1 {[%emt 0:00:00]} Nf2+ {[%emt 0:01:30]} 24. Kg1 {[%emt 0:00:00] Hoping for Ne4.} Nh3+ {[%emt 0:00:00] Weighted Error Value: White=0.25 (precise) /Black=0.27 (precise) .  Mistake:       	White=2     	Black=2      Inaccurate:     	White=2     	Black=1      OK:         	White=5     	Black=5      Best:        	---       	Black=2      Strong:       	---       	Black=1} (24... Nxd1 $17 25. N2f3 Qe7) 1/2-1/2